[Event "Titled Tuesday Blitz February 14 Early 2023"]
[White "Bluebaum, Matthias"]
[Black "Ibadov, Dashgyn"]
[WhiteFideId "24651516"]
[BlackFideId "24107514"]
[WhiteElo "2669"]
[BlackElo "2391"]
[Result "1-0"]
[Round "04"]
[TimeControl "180+2"]
[Date "2023.02.15"]
[WhiteClock "0:01:04"]
[BlackClock "0:00:02"]

1. d4 {[%clk 0:02:59]}  Nf6 {[%clk 0:02:58]} 2. c3 {[%clk 0:02:55]}  d5 {[%clk 0:02:58]} 3. Bf4 {[%clk 0:02:53]}  Bf5 {[%clk 0:02:44]} 4. Qb3 {[%clk 0:02:51]}  Qc8 {[%clk 0:02:43]} 5. c4 {[%clk 0:02:46]}  e6 {[%clk 0:02:42]} 6. Nc3 {[%clk 0:02:45]}  Be7 {[%clk 0:02:35]} 7. e3 {[%clk 0:02:41]}  O-O {[%clk 0:02:31]} 8. Nf3 {[%clk 0:02:41]}  Nc6 {[%clk 0:02:26]} 9. cxd5 {[%clk 0:02:39]}  exd5 {[%clk 0:02:25]} 10. a3 {[%clk 0:02:38]}  Na5 {[%clk 0:02:20]} 11. Qa4 {[%clk 0:02:36]}  b6 {[%clk 0:02:17]} 12. b4 {[%clk 0:02:31]}  Nb7 {[%clk 0:02:15]} 13. Ba6 {[%clk 0:02:27]}  Qb8 {[%clk 0:02:15]} 14. Qc6 {[%clk 0:02:23]}  Nd6 {[%clk 0:01:58]} 15. Nxd5 {[%clk 0:01:57]}  Nxd5 {[%clk 0:01:58]} 16. Qxd5 {[%clk 0:01:57]}  Be4 {[%clk 0:01:40]} 17. Qb3 {[%clk 0:01:52]}  b5 {[%clk 0:01:39]} 18. a4 {[%clk 0:01:46]}  bxa4 {[%clk 0:01:26]} 19. Qxa4 {[%clk 0:01:44]}  Nf5 {[%clk 0:01:14]} 20. O-O {[%clk 0:01:40]}  Bxf3 {[%clk 0:01:11]} 21. gxf3 {[%clk 0:01:41]}  Nh4 {[%clk 0:01:11]} 22. Qc6 {[%clk 0:01:27]}  Qxb4 {[%clk 0:00:42]} 23. Rfb1 {[%clk 0:01:27]}  Qd2 {[%clk 0:00:36]} 24. Bg3 {[%clk 0:01:22]}  Nf5 {[%clk 0:00:20]} 25. Qxc7 {[%clk 0:01:22]}  Bf6 {[%clk 0:00:15]} 26. Qf4 {[%clk 0:01:19]}  Nxg3 {[%clk 0:00:10]} 27. hxg3 {[%clk 0:01:20]}  h6 {[%clk 0:00:07]} 28. Rd1 {[%clk 0:01:11]}  Qc2 {[%clk 0:00:06]} 29. Qe4 {[%clk 0:01:09]}  Qc7 {[%clk 0:00:02]} 30. Bd3 {[%clk 0:01:09]}  g6 {[%clk 0:00:03]} 31. Rdc1 {[%clk 0:01:10]}  Qd7 {[%clk 0:00:03]} 32. Ra6 {[%clk 0:01:09]}  Kg7 {[%clk 0:00:03]} 33. Rxf6 {[%clk 0:01:04]}  Kxf6 {[%clk 0:00:02]} 34. Qe5# {[%clk 0:01:04]} 1-0


[Site "https://www.chess.com"]

[Event "Titled Tuesday Blitz February 14 Early 2023"]
[White "Martynov, Pavel"]
[Black "Hakobyan, Aram"]
[WhiteFideId "4101260"]
[BlackFideId "13306677"]
[WhiteElo "2414"]
[BlackElo "2608"]
[Result "0-1"]
[Round "04"]
[TimeControl "180+2"]
[Date "2023.02.15"]
[WhiteClock "0:00:36"]
[BlackClock "0:01:26"]

1. e4 {[%clk 0:03:00]}  c5 {[%clk 0:02:56]} 2. Nf3 {[%clk 0:03:00]}  d6 {[%clk 0:02:55]} 3. Bb5+ {[%clk 0:03:00]}  Bd7 {[%clk 0:02:55]} 4. Bxd7+ {[%clk 0:03:00]}  Nxd7 {[%clk 0:02:56]} 5. O-O {[%clk 0:03:00]}  e6 {[%clk 0:02:56]} 6. c3 {[%clk 0:02:58]}  Ngf6 {[%clk 0:02:55]} 7. Re1 {[%clk 0:02:58]}  Be7 {[%clk 0:02:54]} 8. d4 {[%clk 0:02:59]}  O-O {[%clk 0:02:55]} 9. h3 {[%clk 0:02:59]}  Rc8 {[%clk 0:02:54]} 10. Na3 {[%clk 0:02:59]}  cxd4 {[%clk 0:02:54]} 11. cxd4 {[%clk 0:02:57]}  d5 {[%clk 0:02:55]} 12. e5 {[%clk 0:02:28]}  Ne4 {[%clk 0:02:55]} 13. Nc2 {[%clk 0:02:28]}  Qb6 {[%clk 0:02:51]} 14. Ne3 {[%clk 0:02:26]}  Rc7 {[%clk 0:02:47]} 15. b3 {[%clk 0:01:54]}  Bb4 {[%clk 0:02:43]} 16. Rf1 {[%clk 0:01:54]}  Rfc8 {[%clk 0:02:42]} 17. Bb2 {[%clk 0:01:52]}  Qa6 {[%clk 0:02:37]} 18. a3 {[%clk 0:01:41]}  Bc3 {[%clk 0:02:34]} 19. Bxc3 {[%clk 0:01:37]}  Nxc3 {[%clk 0:02:32]} 20. Qd2 {[%clk 0:01:35]}  Qe2 {[%clk 0:02:30]} 21. Rfe1 {[%clk 0:01:27]}  Qxd2 {[%clk 0:02:29]} 22. Nxd2 {[%clk 0:01:28]}  a5 {[%clk 0:02:28]} 23. Kf1 {[%clk 0:01:26]}  Nb8 {[%clk 0:02:20]} 24. Rec1 {[%clk 0:01:26]}  Nb5 {[%clk 0:01:55]} 25. Rxc7 {[%clk 0:01:22]}  Rxc7 {[%clk 0:01:56]} 26. Nf3 {[%clk 0:01:21]}  Nc6 {[%clk 0:01:56]} 27. Rc1 {[%clk 0:01:15]}  Nxa3 {[%clk 0:01:56]} 28. Ke1 {[%clk 0:00:59]}  Nb5 {[%clk 0:01:54]} 29. Kd2 {[%clk 0:00:58]}  Kf8 {[%clk 0:01:41]} 30. Rc5 {[%clk 0:00:57]}  Ncxd4 {[%clk 0:01:35]} 31. Rxc7 {[%clk 0:00:44]}  Nxf3+ {[%clk 0:01:36]} 32. gxf3 {[%clk 0:00:45]}  Nxc7 {[%clk 0:01:36]} 33. Kd3 {[%clk 0:00:44]}  g5 {[%clk 0:01:33]} 34. Kd4 {[%clk 0:00:42]}  b6 {[%clk 0:01:33]} 35. Nd1 {[%clk 0:00:38]}  Nb5+ {[%clk 0:01:27]} 36. Kd3 {[%clk 0:00:38]}  Na7 {[%clk 0:01:27]} 37. Ke3 {[%clk 0:00:35]}  Nc6 {[%clk 0:01:26]} 38. f4 {[%clk 0:00:36]}  gxf4+ {[%clk 0:01:27]} 39. Kxf4 {[%clk 0:00:36]}  Nd4 {[%clk 0:01:26]} 0-1


[Site "https://www.chess.com"]

[Event "Titled Tuesday Blitz February 14 Early 2023"]
[White "Makhnev, Denis"]
[Black "Cruz Lledo, Pablo"]
[WhiteFideId "13707647"]
[BlackFideId "2297361"]
[WhiteElo "2483"]
[BlackElo "2373"]
[Result "1-0"]
[Round "04"]
[TimeControl "180+2"]
[Date "2023.02.15"]
[WhiteClock "0:02:40"]
[BlackClock "0:02:23"]

1. d4 {[%clk 0:03:00]}  d5 {[%clk 0:02:56]} 2. c4 {[%clk 0:03:01]}  dxc4 {[%clk 0:02:57]} 3. Nf3 {[%clk 0:03:01]}  c5 {[%clk 0:02:56]} 4. d5 {[%clk 0:03:01]}  Nf6 {[%clk 0:02:53]} 5. Nc3 {[%clk 0:03:00]}  b5 {[%clk 0:02:53]} 6. Nxb5 {[%clk 0:03:00]}  Bb7 {[%clk 0:02:51]} 7. e4 {[%clk 0:02:57]}  Nxe4 {[%clk 0:02:51]} 8. Bxc4 {[%clk 0:02:57]}  e6 {[%clk 0:02:41]} 9. dxe6 {[%clk 0:02:46]}  Qxd1+ {[%clk 0:02:35]} 10. Kxd1 {[%clk 0:02:47]}  Nxf2+ {[%clk 0:02:35]} 11. Ke2 {[%clk 0:02:47]}  Nxh1 {[%clk 0:02:36]} 12. exf7+ {[%clk 0:02:40]}  Kd8 {[%clk 0:02:34]} 13. Bg5+ {[%clk 0:02:40]}  Be7 {[%clk 0:02:34]} 14. Rd1+ {[%clk 0:02:41]}  Nd7 {[%clk 0:02:31]} 15. Ne5 {[%clk 0:02:39]}  Bxg5 {[%clk 0:02:29]} 16. Rxd7+ {[%clk 0:02:38]}  Kc8 {[%clk 0:02:24]} 17. Nd6+ {[%clk 0:02:39]}  Kb8 {[%clk 0:02:23]} 18. Rxb7# {[%clk 0:02:40]} 1-0


[Site "https://www.chess.com"]

[Event "Titled Tuesday Blitz February 14 Early 2023"]
[White "Demchenko, Anton"]
[Black "Vovk, Orest"]
[WhiteFideId "4160258"]
[BlackFideId "14113490"]
[WhiteElo "2623"]
[BlackElo "2315"]
[Result "1-0"]
[Round "04"]
[TimeControl "180+2"]
[Date "2023.02.15"]
[WhiteClock "0:00:10"]
[BlackClock "0:00:02"]

1. e4 {[%clk 0:03:00]}  g5 {[%clk 0:02:55]} 2. d4 {[%clk 0:03:00]}  g4 {[%clk 0:02:50]} 3. Qxg4 {[%clk 0:02:57]}  d5 {[%clk 0:02:50]} 4. Qf3 {[%clk 0:02:52]}  dxe4 {[%clk 0:02:50]} 5. Qxe4 {[%clk 0:02:52]}  Nf6 {[%clk 0:02:50]} 6. Qh4 {[%clk 0:02:51]}  Nc6 {[%clk 0:02:43]} 7. c3 {[%clk 0:02:49]}  Rg8 {[%clk 0:02:42]} 8. Bg5 {[%clk 0:02:37]}  Ne4 {[%clk 0:02:25]} 9. Qxe4 {[%clk 0:02:31]}  Rxg5 {[%clk 0:02:25]} 10. Nf3 {[%clk 0:02:28]}  Rg6 {[%clk 0:02:21]} 11. Be2 {[%clk 0:01:50]}  Qd6 {[%clk 0:01:38]} 12. Na3 {[%clk 0:01:41]}  Be6 {[%clk 0:01:23]} 13. Nc4 {[%clk 0:01:31]}  Qd5 {[%clk 0:01:06]} 14. Qxd5 {[%clk 0:01:27]}  Bxd5 {[%clk 0:01:07]} 15. Ne3 {[%clk 0:01:27]}  Be4 {[%clk 0:01:01]} 16. O-O {[%clk 0:01:18]}  O-O-O {[%clk 0:00:54]} 17. Nd2 {[%clk 0:01:13]}  Bd5 {[%clk 0:00:46]} 18. Nxd5 {[%clk 0:01:13]}  Rxd5 {[%clk 0:00:46]} 19. Bc4 {[%clk 0:01:13]}  Rdg5 {[%clk 0:00:39]} 20. g3 {[%clk 0:01:11]}  e6 {[%clk 0:00:39]} 21. f4 {[%clk 0:01:03]}  Ra5 {[%clk 0:00:30]} 22. a4 {[%clk 0:01:03]}  Bd6 {[%clk 0:00:24]} 23. b4 {[%clk 0:00:56]}  Rh5 {[%clk 0:00:24]} 24. Be2 {[%clk 0:00:53]}  Rhh6 {[%clk 0:00:23]} 25. Ne4 {[%clk 0:00:40]}  Ne7 {[%clk 0:00:23]} 26. Bd3 {[%clk 0:00:36]}  Rg7 {[%clk 0:00:22]} 27. Rf3 {[%clk 0:00:30]}  Nd5 {[%clk 0:00:22]} 28. Raf1 {[%clk 0:00:24]}  f5 {[%clk 0:00:18]} 29. Ng5 {[%clk 0:00:24]}  Kd8 {[%clk 0:00:09]} 30. Re1 {[%clk 0:00:22]}  Re7 {[%clk 0:00:07]} 31. Bc4 {[%clk 0:00:15]}  c6 {[%clk 0:00:06]} 32. Rd3 {[%clk 0:00:12]}  Kd7 {[%clk 0:00:06]} 33. Bxd5 {[%clk 0:00:11]}  exd5 {[%clk 0:00:05]} 34. Rxe7+ {[%clk 0:00:10]}  Bxe7 {[%clk 0:00:06]} 35. Nf3 {[%clk 0:00:11]}  Bf6 {[%clk 0:00:06]} 36. Kg2 {[%clk 0:00:11]}  Rg6 {[%clk 0:00:06]} 37. Re3 {[%clk 0:00:10]}  Rg8 {[%clk 0:00:04]} 38. Ne5+ {[%clk 0:00:11]}  Bxe5 {[%clk 0:00:04]} 39. Rxe5 {[%clk 0:00:11]}  Rf8 {[%clk 0:00:04]} 40. h3 {[%clk 0:00:12]}  b6 {[%clk 0:00:03]} 41. Kf3 {[%clk 0:00:10]}  Kd6 {[%clk 0:00:04]} 42. g4 {[%clk 0:00:10]}  fxg4+ {[%clk 0:00:04]} 43. hxg4 {[%clk 0:00:11]}  c5 {[%clk 0:00:05]} 44. Rh5 {[%clk 0:00:11]}  Rf7 {[%clk 0:00:05]} 45. Rh6+ {[%clk 0:00:11]}  Kc7 {[%clk 0:00:05]} 46. b5 {[%clk 0:00:11]}  cxd4 {[%clk 0:00:04]} 47. cxd4 {[%clk 0:00:12]}  Re7 {[%clk 0:00:05]} 48. f5 {[%clk 0:00:11]}  Re4 {[%clk 0:00:03]} 49. Rxh7+ {[%clk 0:00:11]}  Kd6 {[%clk 0:00:04]} 50. Rh6+ {[%clk 0:00:12]}  Kd7 {[%clk 0:00:03]} 51. g5 {[%clk 0:00:11]}  Rxd4 {[%clk 0:00:03]} 52. g6 {[%clk 0:00:10]}  Rd1 {[%clk 0:00:02]} 53. g7 {[%clk 0:00:10]} 1-0


[Site "https://www.chess.com"]

[Event "Titled Tuesday Blitz February 14 Early 2023"]
[White "Predke, Alexandr"]
[Black "Gimenez Aguirre, Alejo Ismael"]
[WhiteFideId "24107581"]
[BlackFideId "32041667"]
[WhiteElo "2685"]
[BlackElo "2273"]
[Result "1-0"]
[Round "04"]
[TimeControl "180+2"]
[Date "2023.02.15"]
[WhiteClock "0:00:04"]
[BlackClock "0:00:19"]

1. d4 {[%clk 0:03:00]}  Nf6 {[%clk 0:02:58]} 2. c4 {[%clk 0:02:57]}  e6 {[%clk 0:02:58]} 3. Nc3 {[%clk 0:02:57]}  Bb4 {[%clk 0:02:58]} 4. e3 {[%clk 0:02:57]}  O-O {[%clk 0:02:57]} 5. Bd3 {[%clk 0:02:57]}  d5 {[%clk 0:02:56]} 6. cxd5 {[%clk 0:02:53]}  exd5 {[%clk 0:02:56]} 7. a3 {[%clk 0:02:54]}  Bd6 {[%clk 0:02:55]} 8. Qc2 {[%clk 0:02:53]}  c6 {[%clk 0:02:55]} 9. Bd2 {[%clk 0:02:50]}  Re8 {[%clk 0:02:52]} 10. Nge2 {[%clk 0:02:50]}  b5 {[%clk 0:02:43]} 11. f3 {[%clk 0:02:47]}  a6 {[%clk 0:01:59]} 12. g4 {[%clk 0:02:40]}  c5 {[%clk 0:01:59]} 13. dxc5 {[%clk 0:02:40]}  Bxc5 {[%clk 0:01:58]} 14. g5 {[%clk 0:02:40]}  Nh5 {[%clk 0:01:58]} 15. Bxh7+ {[%clk 0:02:24]}  Kh8 {[%clk 0:01:56]} 16. O-O-O {[%clk 0:02:25]}  Qxg5 {[%clk 0:01:41]} 17. Rhg1 {[%clk 0:02:06]}  Qh6 {[%clk 0:01:39]} 18. Bf5 {[%clk 0:02:02]}  Bxe3 {[%clk 0:01:35]} 19. Bxc8 {[%clk 0:01:21]}  Rxc8 {[%clk 0:01:33]} 20. Bxe3 {[%clk 0:01:18]}  Qxe3+ {[%clk 0:01:33]} 21. Kb1 {[%clk 0:01:18]}  Nc6 {[%clk 0:01:18]} 22. Rxd5 {[%clk 0:01:14]}  Nf6 {[%clk 0:01:15]} 23. Rdg5 {[%clk 0:01:10]}  g6 {[%clk 0:00:53]} 24. f4 {[%clk 0:00:47]}  b4 {[%clk 0:00:46]} 25. R5g3 {[%clk 0:00:36]}  Qe6 {[%clk 0:00:41]} 26. f5 {[%clk 0:00:33]}  Qxf5 {[%clk 0:00:39]} 27. Qxf5 {[%clk 0:00:33]}  gxf5 {[%clk 0:00:40]} 28. Nd5 {[%clk 0:00:18]}  Nh7 {[%clk 0:00:34]} 29. Nb6 {[%clk 0:00:15]}  bxa3 {[%clk 0:00:34]} 30. Nxc8 {[%clk 0:00:10]}  Rxc8 {[%clk 0:00:34]} 31. Rxa3 {[%clk 0:00:10]}  Nb4 {[%clk 0:00:29]} 32. Nd4 {[%clk 0:00:08]}  f4 {[%clk 0:00:28]} 33. Rh3 {[%clk 0:00:05]}  Nd5 {[%clk 0:00:18]} 34. Nf3 {[%clk 0:00:04]}  f6 {[%clk 0:00:17]} 35. Rg6 {[%clk 0:00:02]}  Rg8 {[%clk 0:00:14]} 36. Rxg8+ {[%clk 0:00:02]}  Kxg8 {[%clk 0:00:15]} 37. Nd4 {[%clk 0:00:02]}  Kg7 {[%clk 0:00:16]} 38. Ra3 {[%clk 0:00:03]}  Nc7 {[%clk 0:00:15]} 39. Rc3 {[%clk 0:00:03]}  Nd5 {[%clk 0:00:16]} 40. Rc6 {[%clk 0:00:03]}  Ne3 {[%clk 0:00:16]} 41. Rxa6 {[%clk 0:00:03]}  Ng5 {[%clk 0:00:16]} 42. b4 {[%clk 0:00:03]}  Ng4 {[%clk 0:00:17]} 43. b5 {[%clk 0:00:03]}  f3 {[%clk 0:00:17]} 44. Nxf3 {[%clk 0:00:01]}  Nxf3 {[%clk 0:00:18]} 45. b6 {[%clk 0:00:02]}  Nge5 {[%clk 0:00:17]} 46. b7 {[%clk 0:00:02]}  Nd7 {[%clk 0:00:18]} 47. Rd6 {[%clk 0:00:03]}  Nb8 {[%clk 0:00:19]} 48. Rd8 {[%clk 0:00:03]}  Na6 {[%clk 0:00:19]} 49. Ra8 {[%clk 0:00:03]}  Nc5 {[%clk 0:00:19]} 50. b8=Q {[%clk 0:00:03]}  Ne6 {[%clk 0:00:19]} 51. Qg8+ {[%clk 0:00:03]}  Kh6 {[%clk 0:00:19]} 52. Qxe6 {[%clk 0:00:04]}  Kg6 {[%clk 0:00:19]} 53. Rg8+ {[%clk 0:00:03]}  Kh6 {[%clk 0:00:19]} 54. Qxf6+ {[%clk 0:00:03]}  Kh7 {[%clk 0:00:19]} 55. Qh8# {[%clk 0:00:04]} 1-0


[Site "https://www.chess.com"]

[Event "Titled Tuesday Blitz February 14 Early 2023"]
[White "Gharibyan, Mamikon"]
[Black "Berezin, Viktor"]
[WhiteFideId "13308300"]
[BlackFideId "14107872"]
[WhiteElo "2500"]
[BlackElo "2307"]
[Result "1-0"]
[Round "04"]
[TimeControl "180+2"]
[Date "2023.02.15"]
[WhiteClock "0:00:16"]
[BlackClock "0:00:10"]

1. e4 {[%clk 0:03:00]}  g6 {[%clk 0:02:59]} 2. d4 {[%clk 0:02:53]}  Bg7 {[%clk 0:02:59]} 3. Nf3 {[%clk 0:02:54]}  d6 {[%clk 0:02:59]} 4. Bc4 {[%clk 0:02:55]}  Nf6 {[%clk 0:02:59]} 5. Qe2 {[%clk 0:02:54]}  O-O {[%clk 0:02:57]} 6. O-O {[%clk 0:02:55]}  Bg4 {[%clk 0:02:54]} 7. h3 {[%clk 0:02:52]}  Bxf3 {[%clk 0:02:54]} 8. Qxf3 {[%clk 0:02:53]}  Nc6 {[%clk 0:02:48]} 9. c3 {[%clk 0:02:52]}  e5 {[%clk 0:02:49]} 10. Rd1 {[%clk 0:02:43]}  Qe7 {[%clk 0:02:46]} 11. d5 {[%clk 0:02:38]}  Nb8 {[%clk 0:02:37]} 12. Bg5 {[%clk 0:02:38]}  Nbd7 {[%clk 0:02:37]} 13. Nd2 {[%clk 0:02:36]}  h6 {[%clk 0:02:36]} 14. Bh4 {[%clk 0:02:34]}  Qe8 {[%clk 0:02:25]} 15. Bd3 {[%clk 0:02:30]}  Nh5 {[%clk 0:02:22]} 16. Bc2 {[%clk 0:02:24]}  Nf4 {[%clk 0:02:15]} 17. Bg3 {[%clk 0:02:20]}  g5 {[%clk 0:02:11]} 18. Nf1 {[%clk 0:02:19]}  f6 {[%clk 0:02:00]} 19. Ne3 {[%clk 0:02:18]}  Qg6 {[%clk 0:01:59]} 20. Nf5 {[%clk 0:02:18]}  Rae8 {[%clk 0:01:59]} 21. b4 {[%clk 0:02:06]}  h5 {[%clk 0:01:57]} 22. Bh2 {[%clk 0:01:57]}  Nb6 {[%clk 0:01:46]} 23. Ne3 {[%clk 0:01:46]}  Bh6 {[%clk 0:01:33]} 24. a4 {[%clk 0:01:43]}  Kh7 {[%clk 0:01:27]} 25. Bxf4 {[%clk 0:01:28]}  gxf4 {[%clk 0:01:21]} 26. Nf5 {[%clk 0:01:28]}  Nc8 {[%clk 0:01:17]} 27. g3 {[%clk 0:01:24]}  Ne7 {[%clk 0:01:16]} 28. Nh4 {[%clk 0:01:04]}  Qg5 {[%clk 0:01:11]} 29. Kh2 {[%clk 0:01:03]}  Ng6 {[%clk 0:01:07]} 30. Nxg6 {[%clk 0:00:48]}  Qxg6 {[%clk 0:01:06]} 31. Rg1 {[%clk 0:00:48]}  Rg8 {[%clk 0:01:04]} 32. h4 {[%clk 0:00:45]}  Qg4 {[%clk 0:00:54]} 33. Bd1 {[%clk 0:00:41]}  Qxf3 {[%clk 0:00:45]} 34. Bxf3 {[%clk 0:00:40]}  fxg3+ {[%clk 0:00:45]} 35. fxg3 {[%clk 0:00:38]}  Rg7 {[%clk 0:00:42]} 36. Bxh5 {[%clk 0:00:38]}  Reg8 {[%clk 0:00:42]} 37. Raf1 {[%clk 0:00:35]}  Bd2 {[%clk 0:00:28]} 38. Rf3 {[%clk 0:00:34]}  a6 {[%clk 0:00:26]} 39. Rd1 {[%clk 0:00:29]}  Rxg3 {[%clk 0:00:17]} 40. Rxd2 {[%clk 0:00:22]}  Rg1 {[%clk 0:00:17]} 41. Rxf6 {[%clk 0:00:20]}  Re1 {[%clk 0:00:14]} 42. Rg2 {[%clk 0:00:19]}  Rxg2+ {[%clk 0:00:14]} 43. Kxg2 {[%clk 0:00:20]}  Re3 {[%clk 0:00:13]} 44. Bg6+ {[%clk 0:00:15]}  Kg7 {[%clk 0:00:13]} 45. Re6 {[%clk 0:00:15]}  Rxc3 {[%clk 0:00:13]} 46. h5 {[%clk 0:00:16]}  Rb3 {[%clk 0:00:10]} 47. Bf5 {[%clk 0:00:16]}  Rxb4 {[%clk 0:00:10]} 48. h6+ {[%clk 0:00:16]}  Kh8 {[%clk 0:00:10]} 49. Re8# {[%clk 0:00:16]} 1-0


[Site "https://www.chess.com"]

[Event "Titled Tuesday Blitz February 14 Early 2023"]
[White "Golubev, Mikhail"]
[Black "Rakhmanov, Aleksandr"]
[WhiteFideId "14100983"]
[BlackFideId "4173708"]
[WhiteElo "2461"]
[BlackElo "2632"]
[Result "0-1"]
[Round "04"]
[TimeControl "180+2"]
[Date "2023.02.15"]
[WhiteClock "0:00:07"]
[BlackClock "0:00:11"]

1. e4 {[%clk 0:03:00]}  c5 {[%clk 0:02:59]} 2. Nf3 {[%clk 0:03:00]}  Nf6 {[%clk 0:02:59]} 3. Nc3 {[%clk 0:02:57]}  d5 {[%clk 0:02:59]} 4. exd5 {[%clk 0:02:50]}  Nxd5 {[%clk 0:02:59]} 5. d4 {[%clk 0:02:47]}  Nxc3 {[%clk 0:02:58]} 6. bxc3 {[%clk 0:02:48]}  g6 {[%clk 0:02:59]} 7. Bc4 {[%clk 0:02:42]}  Bg7 {[%clk 0:02:58]} 8. O-O {[%clk 0:02:42]}  cxd4 {[%clk 0:02:55]} 9. cxd4 {[%clk 0:02:35]}  Nc6 {[%clk 0:02:50]} 10. c3 {[%clk 0:02:33]}  O-O {[%clk 0:02:49]} 11. Re1 {[%clk 0:02:33]}  Na5 {[%clk 0:02:49]} 12. Bf1 {[%clk 0:02:25]}  e6 {[%clk 0:02:40]} 13. Ba3 {[%clk 0:02:05]}  Re8 {[%clk 0:02:39]} 14. Ne5 {[%clk 0:01:57]}  Nc6 {[%clk 0:02:27]} 15. Nxc6 {[%clk 0:01:52]}  bxc6 {[%clk 0:02:27]} 16. Rb1 {[%clk 0:01:48]}  Qa5 {[%clk 0:02:24]} 17. Qb3 {[%clk 0:01:40]}  Ba6 {[%clk 0:02:05]} 18. Qb4 {[%clk 0:01:09]}  Qxb4 {[%clk 0:01:58]} 19. Bxb4 {[%clk 0:01:05]}  Bxf1 {[%clk 0:01:56]} 20. Kxf1 {[%clk 0:01:06]}  Reb8 {[%clk 0:01:38]} 21. Bd6 {[%clk 0:01:02]}  Rb6 {[%clk 0:01:36]} 22. Bc5 {[%clk 0:00:56]}  Ra6 {[%clk 0:01:35]} 23. Re2 {[%clk 0:00:54]}  Bf8 {[%clk 0:01:32]} 24. Bxf8 {[%clk 0:00:53]}  Kxf8 {[%clk 0:01:24]} 25. Ke1 {[%clk 0:00:51]}  Rd8 {[%clk 0:01:23]} 26. Reb2 {[%clk 0:00:48]}  Rd5 {[%clk 0:01:23]} 27. Rb8+ {[%clk 0:00:42]}  Kg7 {[%clk 0:01:22]} 28. Rc8 {[%clk 0:00:33]}  e5 {[%clk 0:01:04]} 29. Rb2 {[%clk 0:00:13]}  exd4 {[%clk 0:00:59]} 30. cxd4 {[%clk 0:00:14]}  Rxd4 {[%clk 0:00:57]} 31. Rc2 {[%clk 0:00:14]}  Rda4 {[%clk 0:00:47]} 32. R8xc6 {[%clk 0:00:14]}  Rxc6 {[%clk 0:00:46]} 33. Rxc6 {[%clk 0:00:14]}  Rxa2 {[%clk 0:00:47]} 34. Rc7 {[%clk 0:00:13]}  g5 {[%clk 0:00:31]} 35. g4 {[%clk 0:00:12]}  Kg6 {[%clk 0:00:30]} 36. Kf1 {[%clk 0:00:10]}  f6 {[%clk 0:00:28]} 37. Kg2 {[%clk 0:00:09]}  h5 {[%clk 0:00:27]} 38. h3 {[%clk 0:00:09]}  hxg4 {[%clk 0:00:25]} 39. hxg4 {[%clk 0:00:09]}  Ra6 {[%clk 0:00:25]} 40. Kg3 {[%clk 0:00:08]}  Ra3+ {[%clk 0:00:23]} 41. f3 {[%clk 0:00:08]}  Ra6 {[%clk 0:00:24]} 42. Rb7 {[%clk 0:00:08]}  f5 {[%clk 0:00:12]} 43. gxf5+ {[%clk 0:00:07]}  Kxf5 {[%clk 0:00:13]} 44. Rf7+ {[%clk 0:00:07]}  Ke6 {[%clk 0:00:12]} 45. Rg7 {[%clk 0:00:07]}  Kf6 {[%clk 0:00:12]} 46. Rc7 {[%clk 0:00:07]}  Ra5 {[%clk 0:00:11]} 47. Rb7 {[%clk 0:00:07]}  a6 {[%clk 0:00:10]} 48. Rb8 {[%clk 0:00:06]}  Ke5 {[%clk 0:00:10]} 49. Re8+ {[%clk 0:00:06]}  Kd4 {[%clk 0:00:11]} 50. Kg4 {[%clk 0:00:06]}  Rb5 {[%clk 0:00:10]} 51. Rg8 {[%clk 0:00:05]}  a5 {[%clk 0:00:10]} 52. Rxg5 {[%clk 0:00:05]}  Rxg5+ {[%clk 0:00:09]} 53. Kxg5 {[%clk 0:00:06]}  a4 {[%clk 0:00:09]} 54. f4 {[%clk 0:00:06]}  a3 {[%clk 0:00:10]} 55. f5 {[%clk 0:00:06]}  a2 {[%clk 0:00:11]} 56. f6 {[%clk 0:00:07]}  a1=Q {[%clk 0:00:11]} 57. f7 {[%clk 0:00:07]}  Qa3 {[%clk 0:00:11]} 0-1


[Site "https://www.chess.com"]

[Event "Titled Tuesday Blitz February 14 Early 2023"]
[White "Rustemov, Alexander"]
[Black "Kumala, Aleksander"]
[WhiteFideId "4119002"]
[BlackFideId "1141880"]
[WhiteElo "2525"]
[BlackElo "2165"]
[Result "1/2-1/2"]
[Round "04"]
[TimeControl "180+2"]
[Date "2023.02.15"]
[WhiteClock "0:00:02"]
[BlackClock "0:00:53"]

1. d4 {[%clk 0:03:00]}  Nf6 {[%clk 0:03:00]} 2. c4 {[%clk 0:03:00]}  Nc6 {[%clk 0:03:00]} 3. Nf3 {[%clk 0:03:00]}  e6 {[%clk 0:03:00]} 4. a3 {[%clk 0:02:57]}  d6 {[%clk 0:03:00]} 5. Nc3 {[%clk 0:02:56]}  g6 {[%clk 0:03:01]} 6. g3 {[%clk 0:02:57]}  Bg7 {[%clk 0:03:01]} 7. Bg2 {[%clk 0:02:58]}  O-O {[%clk 0:03:01]} 8. O-O {[%clk 0:02:58]}  Re8 {[%clk 0:03:02]} 9. h3 {[%clk 0:02:56]}  e5 {[%clk 0:02:59]} 10. dxe5 {[%clk 0:02:56]}  Nxe5 {[%clk 0:02:59]} 11. Nxe5 {[%clk 0:02:54]}  dxe5 {[%clk 0:02:55]} 12. Bg5 {[%clk 0:02:50]}  Qxd1 {[%clk 0:02:38]} 13. Rfxd1 {[%clk 0:02:49]}  c6 {[%clk 0:02:38]} 14. b3 {[%clk 0:02:32]}  h6 {[%clk 0:02:35]} 15. Be3 {[%clk 0:02:31]}  Be6 {[%clk 0:02:33]} 16. Na4 {[%clk 0:02:27]}  Nd7 {[%clk 0:02:30]} 17. Rac1 {[%clk 0:02:07]}  Bf8 {[%clk 0:02:28]} 18. b4 {[%clk 0:01:49]}  Kg7 {[%clk 0:02:11]} 19. Rc3 {[%clk 0:01:34]}  f5 {[%clk 0:01:59]} 20. Rcd3 {[%clk 0:01:27]}  Nb6 {[%clk 0:01:52]} 21. Nxb6 {[%clk 0:01:16]}  axb6 {[%clk 0:01:52]} 22. Bxb6 {[%clk 0:01:15]}  Bxc4 {[%clk 0:01:53]} 23. Rd7+ {[%clk 0:01:06]}  Re7 {[%clk 0:01:53]} 24. Rxe7+ {[%clk 0:01:05]}  Bxe7 {[%clk 0:01:54]} 25. Rd7 {[%clk 0:01:06]}  Kf6 {[%clk 0:01:51]} 26. Rxb7 {[%clk 0:01:02]}  e4 {[%clk 0:01:45]} 27. Bd4+ {[%clk 0:00:59]}  Ke6 {[%clk 0:01:43]} 28. Bb2 {[%clk 0:00:42]}  Bxe2 {[%clk 0:01:42]} 29. Bf1 {[%clk 0:00:42]}  Bxf1 {[%clk 0:01:40]} 30. Kxf1 {[%clk 0:00:42]}  g5 {[%clk 0:01:36]} 31. Ke2 {[%clk 0:00:38]}  f4 {[%clk 0:01:32]} 32. gxf4 {[%clk 0:00:35]}  gxf4 {[%clk 0:01:33]} 33. Bc1 {[%clk 0:00:21]}  Bd6 {[%clk 0:01:32]} 34. Rh7 {[%clk 0:00:20]}  c5 {[%clk 0:01:29]} 35. Rxh6+ {[%clk 0:00:19]}  Kd5 {[%clk 0:01:29]} 36. Rh5+ {[%clk 0:00:16]}  Kc4 {[%clk 0:01:29]} 37. bxc5 {[%clk 0:00:16]}  Bxc5 {[%clk 0:01:30]} 38. Bxf4 {[%clk 0:00:16]}  Rxa3 {[%clk 0:01:28]} 39. Bg3 {[%clk 0:00:12]}  Ra2+ {[%clk 0:01:27]} 40. Kf1 {[%clk 0:00:13]}  Bd4 {[%clk 0:01:24]} 41. Rh7 {[%clk 0:00:12]}  Kd3 {[%clk 0:01:22]} 42. Rd7 {[%clk 0:00:11]}  e3 {[%clk 0:01:17]} 43. fxe3 {[%clk 0:00:07]}  Kxe3 {[%clk 0:01:18]} 44. Rf7 {[%clk 0:00:05]}  Ra1+ {[%clk 0:01:03]} 45. Kg2 {[%clk 0:00:05]}  Ra2+ {[%clk 0:01:03]} 46. Rf2 {[%clk 0:00:04]}  Rxf2+ {[%clk 0:01:01]} 47. Bxf2+ {[%clk 0:00:05]}  Ke4 {[%clk 0:01:01]} 48. Be1 {[%clk 0:00:02]}  Kf5 {[%clk 0:01:01]} 49. Kf3 {[%clk 0:00:02]}  Kg6 {[%clk 0:01:01]} 50. Bg3 {[%clk 0:00:02]}  Bf6 {[%clk 0:01:00]} 51. Kg4 {[%clk 0:00:03]}  Kh7 {[%clk 0:01:01]} 52. Bf4 {[%clk 0:00:04]}  Bg7 {[%clk 0:01:01]} 53. Kf5 {[%clk 0:00:04]}  Kg8 {[%clk 0:01:01]} 54. h4 {[%clk 0:00:04]}  Bh8 {[%clk 0:01:01]} 55. h5 {[%clk 0:00:04]}  Bg7 {[%clk 0:01:02]} 56. Kg6 {[%clk 0:00:04]}  Bf8 {[%clk 0:00:58]} 57. Be5 {[%clk 0:00:04]}  Bg7 {[%clk 0:00:57]} 58. Bd6 {[%clk 0:00:03]}  Kh8 {[%clk 0:00:54]} 59. Be7 {[%clk 0:00:02]}  Bc3 {[%clk 0:00:53]} 1/2-1/2


[Site "https://www.chess.com"]